fUST/lending_fUST_20240302
["ID","MTS","AMOUNT","RATE_DAILY","PERIOD"]
[316151924,1709380239523,-500.0,0.00020547,2]
[316151925,1709380239532,-632.22100684,0.00020547,2]
[316151926,1709380239542,-499.10693748,0.00020547,2]
[316151927,1709380239551,-502.10295356,0.00020547,2]
[316151928,1709380239560,-500.0,0.00020547,2]
[316151929,1709380239570,-243.52179533,0.00020547,2]
[316151930,1709380239579,-220.24071094,0.00020547,2]
[316151931,1709380239588,-500.0,0.00020547,2]
[316151932,1709380239598,-500.0,0.00020547,2]
[316151933,1709380239607,-500.0,0.00020547,2]
[316151934,1709380239616,-500.0,0.00020547,2]
[316151935,1709380239625,-500.0,0.00020547,2]
[316151936,1709380239634,-500.0,0.00020547,2]
[316151937,1709380239643,-292.36750744,0.00020547,2]
[316151938,1709380239652,-207.18146947,0.00020547,2]
[316151939,1709380239662,-500.0,0.00020547,2]
[316151940,1709380239671,-429.14374354,0.00020547,2]
[316151941,1709380239680,-500.0,0.00020547,2]
[316151942,1709380239690,-500.0,0.00020547,2]
[316151943,1709380239699,-500.0,0.00020547,2]
[316151944,1709380239709,-299.04195533,0.00020547,2]
[316151945,1709380239718,-500.77803753,0.00020547,2]
[316151946,1709380239731,-500.0,0.00020547,2]
[316151947,1709380239740,-500.58733418,0.00020547,2]
[316151948,1709380239749,-500.0,0.00020547,2]
[316151949,1709380239759,-500.0,0.00020547,2]
[316151950,1709380239769,-500.0,0.00020547,2]
[316151951,1709380239778,-500.91745641,0.00020547,2]
[316151952,1709380239788,-500.0,0.00020547,2]
[316151953,1709380239797,-500.0,0.00020547,2]
[316151954,1709380239807,-500.0,0.00020547,2]
[316151955,1709380239817,-500.0,0.00020547,2]
[316151956,1709380239827,-500.0,0.00020547,2]
[316151957,1709380239836,-429.8,0.00020547,2]
[316151958,1709380239845,-500.0,0.00020547,2]
[316151959,1709380239855,-500.0,0.00020547,2]
[316151960,1709380239863,-500.0,0.00020547,2]
[316151961,1709380239873,-500.30285752,0.00020547,2]
[316151962,1709380239882,-500.0,0.00020547,2]
[316151963,1709380239892,-500.0,0.00020547,2]
[316151964,1709380239900,-500.0,0.00020547,2]
[316151965,1709380239911,-500.0,0.00020547,2]
[316151966,1709380239920,-491.65559367,0.00020547,2]
[316151967,1709380239930,-170.27526724,0.00020547,2]
[316151968,1709380239939,-500.0,0.00020547,2]
[316151969,1709380239948,-500.0,0.00020547,2]
[316151970,1709380239957,-500.0,0.00020547,2]
[316151971,1709380239967,-500.0,0.00020547,2]
[316151972,1709380239976,-500.0,0.00020547,2]
[316151973,1709380239986,-500.0,0.00020547,2]
[316151974,1709380239995,-501.8511439,0.00020547,2]
[316151975,1709380240004,-500.0,0.00020547,2]
[316151976,1709380240013,-500.0,0.00020547,2]
[316151977,1709380240022,-500.0,0.00020547,2]
[316151978,1709380240031,-431.86055815,0.00020547,2]
[316151979,1709380240040,-500.0,0.00020547,2]
[316151980,1709380240049,-500.0,0.00020547,2]
[316151981,1709380240059,-500.0,0.00020547,2]
[316151982,1709380240068,-500.0,0.00020547,2]
[316151983,1709380240077,-500.0,0.00020547,2]
[316151984,1709380240087,-500.0,0.00020547,2]
[316151985,1709380240096,-500.0,0.00020547,2]
[316151986,1709380240106,-500.0,0.00020547,2]
[316151987,1709380240115,-500.0,0.00020547,2]
[316151988,1709380240124,-500.0,0.00020547,2]
[316151989,1709380240134,-500.0,0.00020547,2]
[316151990,1709380240143,-500.0,0.00020547,2]
[316151991,1709380240152,-502.58367846,0.00020547,2]
[316151992,1709380240164,-500.38892661,0.00020547,2]
[316151993,1709380240174,-500.0,0.00020547,2]
[316151994,1709380240186,-500.0,0.00020547,2]
[316151995,1709380240195,-500.0,0.00020547,2]
[316151996,1709380240205,-372.26601719,0.00020547,2]
[316151997,1709380240214,-500.0,0.00020547,2]
[316151998,1709380240224,-500.0,0.00020547,2]
[316151999,1709380240233,-500.0,0.00020547,2]
[316152000,1709380240243,-500.0,0.00020547,2]
[316152001,1709380240252,-500.0,0.00020547,2]
[316152002,1709380240261,-500.0,0.00020547,2]
[316152003,1709380240270,-500.0,0.00020547,2]
[316152004,1709380240279,-594.19679759,0.00020547,2]
[316152005,1709380240289,-500.0,0.00020547,2]
[316152006,1709380240298,-500.0,0.00020547,2]
[316152007,1709380240307,-500.0,0.00020547,2]
[316152008,1709380240317,-500.0,0.00020547,2]
[316152009,1709380240326,-589.78321967,0.00020547,2]
[316152010,1709380240335,-500.0,0.00020547,2]
[316152011,1709380240344,-500.0,0.00020547,2]
[316152012,1709380240354,-500.39015866,0.00020547,2]
[316152013,1709380240363,-500.0,0.00020547,2]
[316152014,1709380240372,-500.0,0.00020547,2]
[316152015,1709380240382,-285.48868394,0.00020547,2]
[316152016,1709380240391,-630.39,0.00020547,2]
[316152017,1709380240400,-500.0,0.00020547,2]
[316152018,1709380240411,-500.0,0.00020547,2]
[316152019,1709380240420,-500.0,0.00020547,2]
[316152020,1709380240431,-500.0,0.00020547,2]
[316152021,1709380240440,-500.0,0.00020547,2]
[316152022,1709380240456,-500.0,0.00020547,2]
[316152023,1709380240465,-589.35164637,0.00020547,2]
[316152024,1709380240477,-500.0,0.00020547,2]
[316152025,1709380240493,-500.0,0.00020547,2]
[316152026,1709380240503,-500.0,0.00020547,2]
[316152027,1709380240513,-604.18362538,0.00020547,2]
[316152028,1709380240523,-500.0,0.00020547,2]
[316152029,1709380240532,-500.0,0.00020547,2]
[316152030,1709380240542,-500.0,0.00020547,2]
[316152031,1709380240551,-500.0,0.00020547,2]
[316152032,1709380240560,-500.0,0.00020547,2]
[316152033,1709380240569,-500.0,0.00020547,2]
[316152034,1709380240578,-500.0,0.00020601,2]
[316152036,1709380240587,-500.0,0.00020656,2]
[316152037,1709380240596,-500.0,0.00020711,2]
[316152039,1709380240605,-639.27419173,0.00020766,2]
[316152041,1709380240615,-211.37,0.00021917,2]
[316152042,1709380240625,-500.0,0.00021917,2]
[316152043,1709380240634,-500.0,0.00021917,2]
[316152044,1709380240644,-500.0,0.00021917,2]
[316152046,1709380240656,-10000.0,0.00021918,2]
[316152048,1709380240666,-695.33526627,0.00021918,2]
[316152049,1709380240675,-500.0,0.00021998,2]
[316152050,1709380240685,-505.85465343,0.00021999,2]
[316152051,1709380240695,-503.2923688,0.00021999,2]
[316152052,1709380240705,-500.0,0.00021999,2]
[316152053,1709380240718,-500.0,0.00021999,2]
[316152054,1709380240727,-500.0,0.00021999,2]
[316152055,1709380240737,-500.0,0.00021999,2]
[316152056,1709380240747,-325.57901717,0.00021999,2]
[316152057,1709380240757,-500.0,0.00021999,2]
[316152058,1709380240767,-500.0,0.00021999,2]
[316152060,1709380240776,-508.63471195,0.00021999,2]
[316152062,1709380240786,-500.0,0.00021999,2]
[316152063,1709380240796,-350.33442003,0.00021999,2]
[316152065,1709380240807,-500.0,0.00021999,2]
[316152067,1709380240816,-500.0,0.00021999,2]
[316152069,1709380240826,-500.0,0.00021999,2]
[316152071,1709380240835,-500.0,0.00021999,2]
[316152073,1709380240844,-630.39,0.00021999,2]
[316152085,1709380240945,-501.88047804,0.00021999,2]
[316152087,1709380240955,-554.92242422,0.00021999,2]
[316152089,1709380240964,-500.0,0.00021999,2]
[316152090,1709380240973,-500.0,0.00021999,2]
[316152092,1709380240983,-327.2251864,0.00022,2]
[316152093,1709380240992,-157.1486779,0.00022,2]
[316152094,1709380241001,-583.52,0.0002233,2]
[316152095,1709380241010,-500.0,0.0002233,2]
[316152096,1709380241020,-500.0,0.0002233,2]
[316152097,1709380241029,-500.0,0.0002233,2]
[316152098,1709380241038,-500.0,0.0002233,2]
[316152099,1709380241047,-500.0,0.0002233,2]
[316152100,1709380241056,-500.0,0.0002233,2]
[316152101,1709380241065,-500.0,0.0002233,2]
[316152102,1709380241074,-500.0,0.0002233,2]
[316152103,1709380241084,-500.0,0.0002233,2]
[316152104,1709380241093,-500.0,0.0002233,2]
[316152105,1709380241102,-500.0,0.0002233,2]
[316152107,1709380241112,-500.0,0.0002233,2]
[316152109,1709380241120,-500.0,0.0002233,2]
[316152110,1709380241130,-500.0,0.00022331,2]
[316152111,1709380241139,-500.0,0.00022331,2]
[316152112,1709380241148,-500.0,0.00022331,2]
[316152113,1709380241159,-500.0,0.00022331,2]
[316152114,1709380241168,-500.0,0.00022331,2]
[316152115,1709380241188,-500.0,0.00022331,2]
[316152116,1709380241197,-500.0,0.00022331,2]
[316152117,1709380241206,-166.56,0.00022331,2]
[316152118,1709380241216,-182.70269189,0.00022331,2]
[316152119,1709380241225,-500.94288536,0.00022331,2]
[316152120,1709380241234,-501.72271749,0.00022331,2]
[316152121,1709380241243,-500.0,0.00022331,2]
[316152122,1709380241253,-500.0,0.00022331,2]
[316152123,1709380241262,-500.0,0.00022331,2]
[316152124,1709380241271,-500.0,0.00022331,2]
[316152125,1709380241280,-500.0,0.00022331,2]
[316152126,1709380241289,-500.0,0.00022331,2]
[316152127,1709380241299,-500.0,0.00022331,2]
[316152128,1709380241308,-500.0,0.00022331,2]
[316152129,1709380241317,-500.0,0.00022331,2]
[316152130,1709380241326,-506.21549311,0.00022331,2]
[316152131,1709380241334,-500.0,0.00022331,2]
[316152132,1709380241344,-500.0,0.00022331,2]
[316152133,1709380241353,-500.0,0.00022331,2]
[316152134,1709380241362,-500.0,0.00022331,2]
[316152135,1709380241371,-500.0,0.00022331,2]
[316152136,1709380241380,-500.0,0.00022331,2]
[316152137,1709380241389,-223.47209706,0.00022331,2]
[316152138,1709380241398,-500.0,0.00022331,2]
[316152139,1709380241407,-500.11847754,0.00022331,2]
[316152140,1709380241416,-500.0,0.00022331,2]
[316152141,1709380241425,-411.35686543,0.00022331,2]
[316152142,1709380241434,-377.54615885,0.00022331,2]
[316152143,1709380241444,-500.0,0.00022331,2]
[316152144,1709380241453,-500.0,0.00022331,2]
[316152145,1709380241461,-500.0,0.00022331,2]
[316152146,1709380241471,-500.0,0.00022331,2]
[316152147,1709380241481,-500.0,0.00022331,2]
[316152148,1709380241492,-500.0,0.00022331,2]
[316152150,1709380241501,-500.0,0.00022331,2]
[316152152,1709380241510,-500.0,0.00022331,2]
[316152154,1709380241520,-500.0,0.00022331,2]
[316152156,1709380241529,-643.1,0.00022331,2]
[316152158,1709380241539,-500.0,0.00022331,2]
[316152160,1709380241548,-500.0,0.00022331,2]
[316152162,1709380241557,-500.0,0.00022331,2]
[316152164,1709380241566,-329.73572866,0.00022331,2]
[316152166,1709380241575,-500.0,0.00022331,2]
[316152168,1709380241584,-500.0,0.00022331,2]
[316152170,1709380241593,-500.0,0.00022331,2]
[316152171,1709380241602,-500.0,0.00022331,2]
[316152172,1709380241611,-248.55988568,0.00022331,2]
[316152173,1709380241620,-500.0,0.00022332,2]
[316152174,1709380241629,-500.0,0.00022332,2]
[316152175,1709380241638,-500.0,0.00022332,2]
[316152176,1709380241647,-500.0,0.00022332,2]
[316152177,1709380241657,-500.0,0.00022332,2]
[316152178,1709380241665,-500.0,0.00022332,2]
[316152179,1709380241674,-500.0,0.00022332,2]
[316152180,1709380241684,-500.0,0.00022332,2]
[316152181,1709380241693,-500.0,0.00022332,2]
[316152182,1709380241702,-505.12355103,0.00022332,2]
[316152183,1709380241713,-500.0,0.00022332,2]
[316152184,1709380241722,-500.0,0.00022332,2]
[316152185,1709380241736,-500.0,0.00022332,2]
[316152186,1709380241746,-500.0,0.00022332,2]
[316152187,1709380241755,-500.0,0.00022332,2]
[316152188,1709380241764,-500.0,0.00022332,2]
[316152189,1709380241774,-500.0,0.00022332,2]
[316152190,1709380241784,-501.59162361,0.00022332,2]
[316152191,1709380241792,-500.0,0.00022332,2]
[316152192,1709380241802,-500.0,0.00022332,2]
[316152193,1709380241813,-500.0,0.00022332,2]
[316152194,1709380241822,-500.0,0.00022332,2]
[316152195,1709380241831,-500.0,0.00022332,2]
[316152196,1709380241841,-500.0,0.00022332,2]
[316152197,1709380241850,-271.88752928,0.00022332,2]
[316152198,1709380241859,-500.0,0.00022344,2]
[316152199,1709380241869,-373.30125821,0.00022344,2]
[316152200,1709380241878,-500.0,0.00022344,2]
[316152201,1709380241887,-500.0,0.00022344,2]
[316152202,1709380241896,-500.0,0.00022344,2]
[316152203,1709380241907,-500.0,0.00022344,2]
[316152204,1709380241916,-564.10725101,0.00022344,2]
[316152205,1709380241926,-500.0,0.00022347,2]
[316152206,1709380241935,-500.0,0.00022347,2]
[316152207,1709380241945,-500.0,0.00022347,2]
[316152208,1709380241954,-500.0,0.00022347,2]
[316152209,1709380241963,-500.0,0.00022347,2]
[316152210,1709380241972,-223.79,0.00022347,2]
[316152211,1709380241982,-500.0,0.00022347,2]
[316152212,1709380241991,-500.0,0.00022347,2]
[316152213,1709380242000,-511.89768432,0.00022347,2]
[316152214,1709380242011,-500.0,0.00022347,2]
[316152215,1709380242025,-500.0,0.00022347,2]
[316152216,1709380242037,-500.0,0.00022347,2]
[316152217,1709380242050,-500.0,0.00022347,2]
[316152218,1709380242062,-500.0,0.00022347,2]
[316152219,1709380242075,-500.0,0.00022347,2]
[316152220,1709380242086,-500.0,0.00022347,2]
[316152221,1709380242096,-78098.00169007,0.00022348,4]
[316152222,1709380242106,-500.0,0.00022354,2]
[316152223,1709380242117,-17695.34995915,0.00022355,3]
[316152224,1709380242129,-16551.77081018,0.00022363,3]
[316152225,1709380242140,-5500.00264794,0.00023,2]
[316152226,1709380242152,-153.8229705,0.00023178,2]
[316152227,1709380242165,-307.1657352,0.00023178,2]
[316152228,1709380242179,-401.462595,0.00023178,2]
[316152229,1709380242191,-179.9763373,0.00023288,2]
[316152230,1709380242203,-295.4005503,0.00023288,2]
[316152231,1709380242215,-228.6908748,0.00023288,2]
[316152232,1709380242226,-153.0,0.00023288,2]
[316152233,1709380242237,-153.1512471,0.00023288,2]
[316152234,1709380242250,-153.0,0.00023288,2]
[316152235,1709380242260,-153.0,0.00023288,2]
[316152236,1709380242270,-153.0,0.00023288,2]
[316152237,1709380242280,-153.0,0.00023288,2]
[316152238,1709380242291,-153.0,0.00023288,2]
[316152239,1709380242303,-153.6576126,0.00023452,2]
[316152240,1709380242314,-500.0,0.00023814,2]
[316152241,1709380242326,-500.0,0.00023814,2]
[316152242,1709380242337,-500.0,0.00023814,2]
[316152243,1709380242349,-5000.0,0.00023829,5]
[316152244,1709380242360,-500.0,0.00023898,2]
[316152245,1709380242371,-500.0,0.00023898,2]
[316152246,1709380242382,-464.58599555,0.00023898,2]
[316152247,1709380242393,-500.0,0.00023898,2]
[316152248,1709380242405,-517.32870552,0.00023898,2]
[316152249,1709380242416,-16499.2734939,0.00023899,2]
[316152250,1709380242426,-261.29636981,0.00023899,2]
[316152251,1709380242436,-500.0,0.00023899,2]
[316152252,1709380242446,-500.0,0.00023899,2]
[316152253,1709380242457,-3499.78525508,0.000239,2]
[316152254,1709380242470,-12960.45097895,0.00023949,2]
[316152255,1709380242481,-500.0,0.00023996,2]
[316152256,1709380242492,-500.0,0.00023996,2]
[316152257,1709380242503,-500.0,0.00023996,2]
[316152258,1709380242514,-500.0,0.00023996,2]
[316152259,1709380242526,-629.30936943,0.00023996,2]
[316152260,1709380242536,-500.0,0.00023996,2]
[316152261,1709380242546,-500.0,0.00023996,2]
[316152262,1709380242557,-500.0,0.00023996,2]
[316152263,1709380242567,-500.0,0.00023996,2]
[316152264,1709380242578,-500.0,0.00023996,2]
[316152265,1709380242589,-630.39,0.00023996,2]
[316152266,1709380242600,-500.0,0.00023996,2]
[316152267,1709380242611,-500.0,0.00023996,2]
[316152268,1709380242622,-275.00628789,0.00023997,2]
[316152269,1709380242633,-500.0,0.00023997,2]
[316152270,1709380242645,-500.0,0.00023997,2]
[316152271,1709380242657,-496.95489588,0.00023998,2]
[316152272,1709380242669,-155.01395126,0.00023998,2]
[316152273,1709380242681,-5110.24725051,0.00023998,2]
[316152274,1709380242692,-1592.05606337,0.00023998,2]
[316152275,1709380242703,-281.20753041,0.00023998,2]
[316152276,1709380242718,-155.11323266,0.00023998,2]
[316152277,1709380242730,-203.57256997,0.00023998,2]
[316152278,1709380242740,-500.0,0.00023998,2]
[316152279,1709380242750,-190.58163222,0.00023998,2]
[316152280,1709380242760,-500.0,0.00023998,2]
[316152281,1709380242770,-220.62,0.00023998,2]
[316152282,1709380242780,-500.0,0.00023998,2]
[316152283,1709380242790,-500.0,0.00023998,2]
[316152284,1709380242800,-500.0,0.00023998,2]
[316152285,1709380242813,-500.0,0.00023998,2]
[316152286,1709380242824,-500.0,0.00023998,2]
[316152287,1709380242848,-500.0,0.00023998,2]
[316152288,1709380242862,-500.0,0.00023998,2]
[316152289,1709380242875,-500.0,0.00023998,2]
[316152290,1709380242887,-500.0,0.00023998,2]
[316152291,1709380242900,-500.0,0.00023998,2]
[316152292,1709380242916,-500.0,0.00023998,2]
[316152293,1709380242927,-500.0,0.00023998,2]
[316152294,1709380242937,-643.28738441,0.00023998,2]
[316152295,1709380242947,-500.0,0.00023998,2]
[316152296,1709380242957,-500.0,0.00023998,2]
[316152297,1709380242967,-630.39,0.00023998,2]
[316152298,1709380242977,-500.0,0.00023998,2]
[316152301,1709380242990,-250.0,0.00023999,7]
[316152302,1709380243003,-543.87,0.00023999,2]
[316152303,1709380243014,-277.96,0.00023999,2]
[316152304,1709380243027,-500.0,0.00023999,2]
[316152305,1709380243038,-500.0,0.00023999,2]
[316152306,1709380243049,-500.0,0.00023999,2]
[316152307,1709380243061,-500.0,0.00023999,2]
[316152308,1709380243073,-500.0,0.00023999,2]
[316152310,1709380243085,-500.0,0.00023999,2]
[316152311,1709380243097,-500.0,0.00023999,2]
[316152312,1709380243108,-479.39,0.00023999,2]
[316152313,1709380243120,-500.0,0.00023999,2]
[316152314,1709380243132,-500.0,0.00023999,2]
[316152315,1709380243144,-500.0,0.00023999,2]
[316152318,1709380243155,-500.0,0.00023999,2]
[316152320,1709380243167,-500.0,0.00023999,2]
[316152321,1709380243178,-500.0,0.00023999,2]
[316152322,1709380243189,-500.0,0.00023999,2]
[316152323,1709380243200,-500.0,0.00023999,2]
[316152325,1709380243212,-500.0,0.00023999,2]
[316152326,1709380243222,-500.0,0.00023999,2]
[316152327,1709380243232,-500.0,0.00023999,2]
[316152328,1709380243243,-500.0,0.00023999,2]
[316152329,1709380243254,-500.0,0.00023999,2]
[316152330,1709380243265,-500.0,0.00023999,2]
[316152331,1709380243276,-583.46,0.00023999,2]
[316152332,1709380243287,-500.0,0.00023999,2]
[316152333,1709380243299,-500.0,0.00023999,2]
[316152334,1709380243309,-500.0,0.00023999,2]
[316152342,1709380243441,-500.0,0.00023999,2]
[316152344,1709380243451,-500.0,0.00023999,2]
[316152346,1709380243460,-354.16,0.00023999,2]
[316152348,1709380243470,-500.0,0.00023999,2]
[316152350,1709380243479,-500.0,0.00023999,2]
[316152352,1709380243489,-500.0,0.00023999,2]
[316152354,1709380243498,-341.0,0.00023999,2]
[316152356,1709380243507,-500.0,0.00023999,2]
[316152358,1709380243516,-500.0,0.00023999,2]
[316152360,1709380243525,-500.0,0.00023999,2]
[316152362,1709380243534,-500.0,0.00023999,2]
[316152364,1709380243543,-500.0,0.00023999,2]
[316152366,1709380243552,-500.0,0.00023999,2]
[316152367,1709380243561,-500.0,0.00023999,2]
[316152369,1709380243571,-500.0,0.00023999,2]
[316152371,1709380243580,-500.0,0.00023999,2]
[316152373,1709380243589,-423.53,0.00023999,2]
[316152375,1709380243598,-500.0,0.00023999,2]
[316152377,1709380243608,-500.0,0.00023999,2]
[316152379,1709380243617,-500.0,0.00023999,2]
[316152380,1709380243626,-500.0,0.00023999,2]
[316152382,1709380243635,-500.0,0.00023999,2]
[316152384,1709380243644,-500.0,0.00023999,2]
[316152386,1709380243654,-500.0,0.00023999,2]
[316152388,1709380243665,-174.49,0.00023999,2]
[316152390,1709380243674,-500.0,0.00023999,2]
[316152392,1709380243683,-500.0,0.00023999,2]
[316152394,1709380243692,-500.0,0.00023999,2]
[316152396,1709380243701,-541.24,0.00023999,2]
[316152398,1709380243711,-630.39,0.00023999,2]
[316152400,1709380243720,-630.39,0.00023999,2]
[316152402,1709380243729,-630.39,0.00023999,2]
[316152404,1709380243740,-630.39,0.00023999,2]
[316152406,1709380243749,-630.39,0.00023999,2]
[316152408,1709380243758,-630.39,0.00023999,2]
[316152410,1709380243767,-630.39,0.00023999,2]
[316152412,1709380243777,-630.39,0.00023999,2]
[316152413,1709380243786,-630.39,0.00023999,2]
[316152416,1709380243796,-630.39,0.00023999,2]
[316152417,1709380243806,-630.39,0.00023999,2]
[316152419,1709380243815,-630.39,0.00023999,2]
[316152421,1709380243825,-630.39,0.00023999,2]
[316152423,1709380243834,-630.39,0.00023999,2]
[316152425,1709380243843,-630.39,0.00023999,2]
[316152427,1709380243852,-630.39,0.00023999,2]
[316152429,1709380243861,-630.39,0.00023999,2]
[316152431,1709380243871,-630.39,0.00023999,2]
[316152433,1709380243880,-630.39,0.00023999,2]
[316152435,1709380243889,-630.45,0.00023999,2]
[316152437,1709380243898,-411.62,0.00023999,2]
[316152439,1709380243908,-1127242.98585804,0.00024,5]
[316152458,1709380244084,-1634.92402933,0.00018761,2]
[316152460,1709380244093,-158.52043867,0.00020547,2]
[316152468,1709380244153,-341.47956133,0.00020547,2]
[316152469,1709380244163,-500.0,0.00020547,2]
[316152471,1709380244172,-500.0,0.0002233,2]
[316152473,1709380244181,-2207.04,0.00022331,2]
[316152475,1709380244190,-500.0,0.00022331,2]
[316152477,1709380244199,-2207.04,0.00023998,2]
[316152479,1709380244208,-2207.04,0.00023999,2]
[316152481,1709380244218,-2207.04,0.00023999,2]
[316152483,1709380244227,-2207.04,0.00023999,2]
[316152485,1709380244236,-2207.04,0.00023999,2]
[316152487,1709380244244,-2207.04,0.00023999,2]
[316152488,1709380244253,-2207.04,0.00023999,2]
[316152490,1709380244262,-2207.04,0.00023999,2]
[316152492,1709380244271,-2207.04,0.00023999,2]
[316152494,1709380244280,-2207.04,0.00023999,2]
[316152496,1709380244289,-2207.04,0.00023999,2]
[316152498,1709380244298,-2207.04,0.00023999,2]
[316152500,1709380244308,-2207.04,0.00023999,2]
[316152502,1709380244317,-2207.04,0.00023999,2]
[316152504,1709380244326,-2207.04,0.00023999,2]
[316152506,1709380244335,-1222805.88043867,0.00024,5]
[316152508,1709380244346,-7322.95158007,0.00024,5]
[316152590,1709380249661,-2207.04,0.00023999,2]
[316152591,1709380249671,-2207.04,0.00023999,2]
[316152592,1709380249680,-2207.04,0.00023999,2]
[316152593,1709380249689,-2207.04,0.00023999,2]
[316152594,1709380249699,-2207.04,0.00023999,2]
[316152595,1709380249709,-2207.04,0.00023999,2]
[316152596,1709380249724,-2207.04,0.00023999,2]
[316152597,1709380249734,-2207.2133485,0.00023999,2]
[316152598,1709380249743,-41232.98784391,0.00024,5]
[316152599,1709380284837,208.71529326,0.0003,120]
[316152603,1709380395820,171.058407,0.0003,120]
[316152610,1709380522507,208.71529361,0.0003,120]
[316152611,1709380591929,594.83897203,0.00024,120]
[316152707,1709381438714,-629.80951516,0.00018973,2]
[316152709,1709381438726,-297.291771,0.00018973,2]
[316152711,1709381438735,-1634.92402933,0.00018999,2]
[316152713,1709381438744,-5060.81473726,0.00019,2]
[316152715,1709381438753,-210.989413,0.00019648,2]
[316152717,1709381438762,-184.657561,0.00019684,2]
[316152719,1709381438771,-564.32330208,0.00020546,2]
[316152721,1709381438780,-451.7253466,0.00020547,2]
[316152723,1709381438789,-500.0,0.00020547,2]
[316152725,1709381438798,-500.74207174,0.00020547,2]
[316152727,1709381438807,-500.0,0.00020547,2]
[316152729,1709381438816,-500.0,0.00020547,2]
[316152731,1709381438825,-500.0,0.00020547,2]
[316152733,1709381438834,-500.0,0.00020547,2]
[316152735,1709381438843,-500.0,0.00020547,2]
[316152737,1709381438853,-500.0,0.00020547,2]
[316152739,1709381438862,-500.0,0.00020547,2]
[316152741,1709381438870,-500.0,0.00020547,2]
[316152743,1709381438879,-500.0,0.00020547,2]
[316152745,1709381438888,-500.0,0.00020547,2]
[316152747,1709381438897,-500.0,0.00020547,2]
[316152749,1709381438906,-261.29636981,0.00020547,2]
[316152751,1709381438915,-439.17138797,0.00020547,2]
[316152753,1709381438924,-500.0,0.00020547,2]
[316152755,1709381438933,-500.0,0.00020547,2]
[316152757,1709381438942,-500.0,0.00020547,2]
[316152759,1709381438952,-258.15302439,0.00020547,2]
[316152761,1709381438961,-500.0,0.00020547,2]
[316152763,1709381438970,-500.0,0.00020547,2]
[316152765,1709381438979,-500.0,0.00020547,2]
[316152767,1709381438989,-500.0,0.00020547,2]
[316152769,1709381438998,-500.0,0.00020547,2]
[316152771,1709381439007,-500.31899009,0.00020547,2]
[316152773,1709381439016,-500.0,0.00020547,2]
[316152775,1709381439025,-500.0,0.00020547,2]
[316152777,1709381439034,-500.0,0.00020547,2]
[316152779,1709381439043,-500.0,0.00020547,2]
[316152781,1709381439052,-500.0,0.00020547,2]
[316152783,1709381439061,-271.88752928,0.00020547,2]
[316152785,1709381439071,-436.79422324,0.00020547,2]
[316152786,1709381439085,-500.0,0.00020547,2]
[316152788,1709381439094,-500.0,0.00020547,2]
[316152790,1709381439104,-500.0,0.00020547,2]
[316152792,1709381439113,-329.73572866,0.00020547,2]
[316152794,1709381439124,-500.0,0.00020547,2]
[316152796,1709381439133,-500.0,0.00020547,2]
[316152798,1709381439142,-500.0,0.00020547,2]